lending/lending_fUSD_20240926
["ID","MTS","AMOUNT","RATE_DAILY","PERIOD"]
[339211453,1727342411709,500.0,0.00021,60]
[339211454,1727342411984,280.14,0.00021,60]
[339211462,1727342487993,312.11,9.763e-05,2]
[339211524,1727342908485,150.0,0.0001389,30]
[339211526,1727342991603,400.0,0.00021,60]
[339211553,1727343031927,-150.9,0.00011569,2]
[339211554,1727343031938,-173.71021251,0.00011589,2]
[339211556,1727343031948,-265.20755301,0.00011589,2]
[339211558,1727343031957,-158.51370714,0.00011589,2]
[339211559,1727343031967,-160.08,0.00011684,2]
[339211560,1727343031976,-151.55,0.0001169,2]
[339211561,1727343031985,-150.9,0.00011728,2]
[339211562,1727343031995,-565.20910138,0.00011738,2]
[339211563,1727343032006,-434.79089862,0.00011738,2]
[339211564,1727343032016,-250.0,0.00011738,2]
[339211565,1727343032026,-199.0,0.00011784,2]
[339211566,1727343032035,-150.9,0.0001189,2]
[339211567,1727343032045,-300.0,0.00011899,2]
[339211568,1727343032054,-1054.20233731,0.000119,2]
[339211569,1727343032063,-2900.0,0.000119,4]
[339211570,1727343032073,-150.99,0.0001199,2]
[339211571,1727343032082,-150.9,0.0001199,2]
[339211572,1727343032093,-150.9,0.0001199,2]
[339211573,1727343032105,-1621.60627729,0.00012,4]
[339211574,1727343032116,-4278.39372271,0.00012,4]
[339211575,1727343032125,-312.11,0.00012027,2]
[339211576,1727343032135,-150.9,0.0001209,2]
[339211577,1727343032144,-150.9,0.0001209,2]
[339211578,1727343032154,-8900.0,0.000121,4]
[339211579,1727343032163,-150.9,0.0001219,2]
[339211580,1727343032172,-11800.0,0.000122,4]
[339211581,1727343032182,-4320.87029486,0.0001226,2]
[339211582,1727343032192,-150.0,0.00012299,2]
[339211583,1727343032201,-14800.0,0.000123,4]
[339211584,1727343032211,-2900.0,0.000124,4]
[339211585,1727343032220,-2900.0,0.000125,4]
[339211586,1727343032230,-2900.0,0.000126,4]
[339211587,1727343032239,-1685.92598243,0.000127,4]
[339211588,1727343032251,-1214.07401757,0.000127,4]
[339211589,1727343032260,-150.0,0.00012731,2]
[339211590,1727343032272,-150.0,0.00012749,2]
[339211591,1727343032282,-150.0,0.00012751,2]
[339211593,1727343032293,-150.0,0.00012751,2]
[339211596,1727343032304,-150.0,0.00012754,2]
[339211598,1727343032314,-36.29632256,0.00012763,2]
[339211600,1727343032325,-113.70367744,0.00012763,2]
[339211602,1727343032335,-150.0,0.00012786,2]
[339211604,1727343032347,-229.4671,0.000128,2]
[339211606,1727343032356,-396.2127,0.000128,2]
[339211608,1727343032366,-790.27138125,0.000128,2]
[339211610,1727343032375,-3500.0,0.000128,4]
[339211612,1727343032386,-542.92511418,0.000128,2]
[339211614,1727343032397,-150.0,0.00012809,2]
[339211616,1727343032406,-332.67002712,0.00012811,2]
[339211618,1727343032418,-457.6013541,0.00012811,2]
[339211620,1727343032428,-150.0,0.00012812,2]
[339211622,1727343032438,-150.0,0.00012816,2]
[339211624,1727343032447,-150.0,0.00012821,2]
[339211626,1727343032457,-368.1183319,0.00012822,2]
[339211628,1727343032468,-422.15304932,0.00012822,2]
[339211630,1727343032479,-113.69554903,0.00012833,2]
[339211632,1727343032493,-676.57583219,0.00012833,2]
[339211634,1727343032503,-790.27138122,0.00012844,2]
[339211636,1727343032513,-150.0,0.00012845,2]
[339211638,1727343032523,-180.0,0.0001285,2]
[339211640,1727343032532,-790.27138122,0.00012856,2]
[339211642,1727343032542,-150.0,0.00012857,2]
[339211644,1727343032553,-790.27138122,0.00012867,2]
[339211646,1727343032564,-564.8212458,0.00012873,2]
[339211648,1727343032575,-500.0,0.00012873,2]
[339211651,1727343032586,-150.0,0.00012873,2]
[339211653,1727343032596,-150.0,0.00012877,2]
[339211654,1727343032605,-790.27138122,0.00012878,2]
[339211656,1727343032615,-150.0,0.0001288,2]
[339211658,1727343032626,-150.0,0.00012882,2]
[339211660,1727343032635,-150.0,0.00012883,2]
[339211662,1727343032644,-150.0,0.00012884,2]
[339211664,1727343032654,-790.27138122,0.00012889,2]
[339211666,1727343032663,-238.9898656,0.00012895,2]
[339211668,1727343032672,-2735.6882678,0.00012895,2]
[339211670,1727343032683,-369.1027379,0.00012895,2]
[339211672,1727343032693,-150.0,0.00012895,2]
[339211674,1727343032703,-94941.6290883,0.000129,2]
[339211677,1727343032716,-15166.44416387,0.000129,2]
[339211725,1727343038191,-303.35,0.00011684,2]
[339211726,1727343038203,-473.48451638,0.00011684,2]
[339211727,1727343038254,-748.46524876,0.00011684,2]
[339211728,1727343038263,-160.08,0.0001197,2]
[339211729,1727343038274,-31068.86270913,0.000129,2]
[339211730,1727343038284,-4585.38748197,0.000129,2]
[339211731,1727343038294,-209749.63037256,0.000129,2]
[339211732,1727343038426,-2455.07837906,0.000129,2]
[339211800,1727343040683,-300789.06582024,0.000129,2]
[339211830,1727343042999,-340783.22216261,0.000129,2]
[339211833,1727343043060,-5595.82016693,0.000129,2]
[339211834,1727343043072,-1549.34317833,0.000129,2]
[339211841,1727343046035,-321.47115554,0.000128,2]
[339211842,1727343046045,-8706.34038813,0.000129,2]
[339211843,1727343046152,-99206.22645563,0.000129,2]
[339211844,1727343046163,-48386.0531306,0.000129,2]
[339211845,1727343046275,-320.94132826,0.000129,2]
[339211846,1727343046336,-13239.16505135,0.000129,2]
[339211847,1727343046347,-12707.0,0.000129,2]
[339211848,1727343046397,-3527.69677201,0.000129,2]
[339211849,1727343126776,291.47,9.976e-05,2]
[339211857,1727343431043,269.77,0.00010959,2]
[339211859,1727343463315,10000.0,0.00021,60]
[339211860,1727343506899,1050.0,0.00011,2]
[339211861,1727343677205,672.24,0.00010959,2]
[339211862,1727343687707,172.17,0.00010959,2]
[339211863,1727343698239,274.8,0.00010959,2]
[339211864,1727343708824,229.0,0.00010959,2]
[339211865,1727343719356,190.83,0.00010959,2]
[339211866,1727343720847,361.45,9.499e-05,2]
[339211867,1727343730213,159.03,0.00010959,2]
[339211868,1727343740755,795.17,0.00010959,2]
[339211869,1727343832742,150.0,0.0001389,30]
[339211873,1727343978769,244.14,0.00010959,2]
[339211874,1727344064331,176.43,9.054e-05,2]
[339211886,1727344232142,-3931.62809847,0.00011252,2]
[339211887,1727344232154,-29.56190153,0.00011252,2]
[339211888,1727344232163,-3151.2,0.00011329,2]
[339211889,1727344232173,-276.22,0.00011385,2]
[339211890,1727344232182,-1000.0,0.00011396,2]
[339211891,1727344232191,-249.53,0.00011404,2]
[339211892,1727344232200,-250.0,0.00011406,2]
[339211893,1727344232209,-300.0,0.00011408,2]
[339211894,1727344232219,-250.0,0.00011409,2]
[339211895,1727344232229,-250.0,0.00011409,2]
[339211896,1727344232238,-1953.04890546,0.0001141,2]
[339211897,1727344232257,-6289.16445455,0.0001141,2]
[339211898,1727344232356,-655.08169987,0.0001141,2]
[339211899,1727344232367,-1161.35257624,0.0001141,2]
[339211900,1727344232379,-1184.24886143,0.0001141,2]
[339211919,1727344238622,-1234.63522344,0.00011483,2]
[339211920,1727344238634,-7259.30477656,0.00011483,2]
[339211921,1727344238643,-172.09,0.00011484,2]
[339211922,1727344238653,-150.0,0.00011589,2]
[339211923,1727344238665,-150.0,0.00011589,2]
[339211924,1727344238674,-150.0,0.00011589,2]
[339211925,1727344238683,-150.00000001,0.00011589,2]
[339211926,1727344238693,-912.8,0.00011589,2]
[339211927,1727344238702,-151.71,0.00011745,2]
[339211928,1727344238712,-499.99,0.00011747,2]
[339211929,1727344238721,-151.71,0.0001175,2]
[339211930,1727344238731,-151.71,0.00011755,2]
[339211931,1727344238741,-151.71,0.0001176,2]
[339211932,1727344238751,-361.45,0.00011763,2]
[339211933,1727344238762,-151.71,0.00011765,2]
[339211934,1727344238772,-151.71,0.0001177,2]
[339211935,1727344238782,-151.71,0.00011775,2]
[339211936,1727344238794,-151.71,0.0001178,2]
[339211937,1727344238805,-151.71,0.00011785,2]
[339211938,1727344238815,-151.71,0.0001179,2]
[339211939,1727344238826,-151.71,0.00011795,2]
[339211940,1727344238836,-150.0,0.00011799,2]
[339211941,1727344238846,-151.71,0.00011799,2]
[339211943,1727344238855,-151.71,0.00011804,2]
[339211944,1727344238864,-400.0,0.000119,4]
[339211945,1727344238873,-900.0,0.00012,4]
[339211946,1727344238883,-1400.0,0.000121,4]
[339211947,1727344238893,-1900.0,0.000122,4]
[339211948,1727344238902,-150.0,0.00012233,2]
[339211949,1727344238911,-2400.0,0.000123,4]
[339211950,1727344238921,-400.0,0.000124,4]
[339211951,1727344238931,-400.0,0.000125,4]
[339211952,1727344238941,-420.0,0.00012531,2]
[339211954,1727344238951,-180.0,0.00012536,2]
[339211956,1727344238961,-400.0,0.000126,4]
[339211958,1727344238970,-400.0,0.000127,4]
[339211960,1727344238980,-395.16004784,0.00012756,2]
[339211962,1727344238989,-150.0,0.0001276,2]
[339211964,1727344238999,-151.2602227,0.00012765,2]
[339211966,1727344239008,-150.0,0.00012766,2]
[339211968,1727344239018,-150.0,0.00012771,2]
[339211970,1727344239028,-2941.57430783,0.00012785,2]
[339211972,1727344239040,-157.48400244,0.00012791,2]
[339211974,1727344239051,-157.48400239,0.00012793,2]
[339211976,1727344239065,-157.48400239,0.00012795,2]
[339211979,1727344239076,-157.48400239,0.00012796,2]
[339211981,1727344239085,-157.48400239,0.00012798,2]
[339211983,1727344239095,-7735.5144,0.000128,2]
[339211984,1727344239104,-1200.0,0.000128,4]
[339211986,1727344239114,-157.48400239,0.000128,2]
[339211988,1727344239124,-150.0,0.00012804,2]
[339211990,1727344239136,-1000.0,0.00012821,2]
[339211992,1727344239146,-249.53,0.00012829,2]
[339211994,1727344239156,-189.378,0.00012873,2]
[339211996,1727344239166,-151.674,0.00012873,2]
[339211998,1727344239175,-163.0,0.00012873,2]
[339212000,1727344239184,-150.0,0.00012877,2]
[339212002,1727344239193,-23990.31124721,0.00012881,2]
[339212004,1727344239206,-1364.54666369,0.00012881,2]
[339212006,1727344239219,-1556.15930447,0.00012881,2]
[339212009,1727344239232,-1221.06355961,0.00012881,2]
[339212011,1727344239242,-949.11172209,0.00012881,2]
[339212012,1727344239261,-11207.81455761,0.00012881,2]
[339212013,1727344239272,-7284.11401147,0.00012881,2]
[339212014,1727344239284,-12261.65,0.00012881,2]
[339212015,1727344239295,-21707.91551847,0.00012881,2]
[339212016,1727344239306,-14000.0,0.00012881,2]
[339212017,1727344239316,-1056.81499998,0.00012881,2]
[339212024,1727344240390,-747.50000025,0.00012881,2]
[339212025,1727344240496,-1821.82630156,0.00012881,2]
[339212026,1727344240506,-150.0,0.00012891,2]
[339212027,1727344240516,-343.7670451,0.00012895,2]
[339212028,1727344240525,-2406.2361653,0.00012895,2]
[339212044,1727344243339,-220.4605833,0.00012895,2]
[339212045,1727344243349,-199.1582214,0.00012895,2]
[339212046,1727344243359,-153.5900339,0.00012898,2]
[339212047,1727344243368,-12396.66636909,0.000129,2]
[339212056,1727344354071,150.0,0.0001389,30]
[339212057,1727344483888,325.3,0.00010052,2]
[339212058,1727344547017,161.85,0.00010959,2]
[339212059,1727344849714,150.0,0.000109,2]
[339212060,1727344850307,150.0,0.000102,2]
[339212062,1727344929048,150.0,0.0001389,30]
[339212063,1727345046633,309.03,9.863e-05,2]
[339212066,1727345312863,1050.0,0.00011,2]
[339212067,1727345316639,154.26,0.00010959,2]
[339212070,1727345431551,-150.0,0.000116,2]
[339212071,1727345431560,-183.93770749,0.00011618,2]
[339212072,1727345431570,-600.0,0.00011699,2]
[339212073,1727345431580,-3685.94,0.00011718,2]
[339212074,1727345431590,-146.6625243,0.00011729,2]
[339212075,1727345431603,-103.3374757,0.00011729,2]
[339212076,1727345431612,-276.22,0.00011743,2]
[339212077,1727345431621,-151.55,0.00011797,2]
[339212078,1727345431631,-151.74,0.00011958,2]
[339212079,1727345431641,-400.0,0.00011963,2]
[339212080,1727345431650,-179.4924583,0.00011983,2]
[339212081,1727345431662,-19.5375417,0.00011983,2]
[339212082,1727345431671,-151.74,0.00011988,2]
[339212083,1727345431681,-151.74,0.00012018,2]
[339212084,1727345431691,-309.03,0.00012127,2]
[339212085,1727345431700,-259.39848917,0.00012255,2]
[339212086,1727345431710,-150.0,0.000123,2]
[339212087,1727345431720,-2525.53,0.00012329,2]
[339212088,1727345431729,-180.248806,0.00012433,2]
[339212089,1727345431739,-11510.0,0.000125,2]
[339212090,1727345431748,-300.0,0.00012599,2]
[339212091,1727345431758,-150.0,0.00012721,2]
[339212093,1727345431768,-150.0,0.00012729,2]
[339212094,1727345431778,-150.0,0.00012747,2]
[339212095,1727345431787,-150.0,0.0001278,2]
[339212096,1727345431796,-180.0,0.00012794,2]
[339212097,1727345431806,-150.0,0.00012823,2]
[339212098,1727345431816,-150.0,0.00012866,2]
[339212099,1727345431826,-151.674,0.00012895,2]
[339212100,1727345431835,-4252.0791269,0.00012895,2]
[339212101,1727345431844,-178.4457663,0.00012895,2]
[339212102,1727345431853,-562.8329222,0.00012895,2]
[339212103,1727345431863,-70731.1151367,0.000129,2]
[339212104,1727345431873,-3668.30998558,0.000129,2]
[339212105,1727345431883,-99755.97477984,0.000129,2]
[339212109,1727345437896,-999.68857507,0.000129,2]
[339212110,1727345437919,-1283.33343229,0.000129,2]
[339212127,1727345439578,-2383.17058689,0.000129,2]
[339212152,1727345442610,-763.14706577,0.000129,2]
[339212157,1727345445513,-8999.98669471,0.000129,2]
[339212158,1727345445535,-250.0,0.000129,2]
[339212159,1727345445631,-455.24616033,0.000129,2]
[339212160,1727345445643,-1364.17058122,0.000129,2]
[339212161,1727345445728,-5999.99999999,0.000129,2]
[339212162,1727345445739,-2580.39101822,0.000129,2]
[339212163,1727345469104,500.70818901,0.00021,60]
[339212164,1727345473407,77278.99,5.781e-05,7]
[339212165,1727345473430,131338.731071,5.781e-05,7]
[339212166,1727345473893,505.30642323,0.00021,60]
[339212167,1727345478102,330.99968433,0.00021,60]
[339212168,1727345491652,359.89518586,0.00021,60]
[339212169,1727345530397,150.0,0.00021,60]
[339212170,1727345534419,500.0,0.00021,60]
[339212171,1727345534714,262.46768165,0.00021,60]
[339212172,1727345545650,500.0,0.00021,60]
[339212173,1727345550142,500.0,0.00021,60]
[339212174,1727345551071,505.95599803,0.00021,60]
[339212175,1727345552619,500.0,0.00021,60]
[339212176,1727345554680,500.0,0.00021,60]
[339212177,1727345555522,500.0,0.00021,60]
[339212178,1727345557197,622.13945133,0.00021,60]
[339212179,1727345558835,500.0,0.00021,60]
[339212180,1727345561215,500.0,0.00021,60]
[339212181,1727345561465,322.89019669,0.00021,60]
[339212182,1727345561523,500.0,0.00021,60]
[339212183,1727345561812,235.92901317,0.00021,60]
[339212184,1727345561887,500.0,0.00021,60]
[339212185,1727345562767,500.0,0.00021,60]
[339212186,1727345563835,312.52547624,0.00021,60]
[339212187,1727345563996,500.0,0.00021,60]
[339212188,1727345565239,500.0,0.00021,60]
[339212189,1727345565418,286.95,0.0001003,2]
[339212190,1727345567121,500.0,0.00021,60]
[339212191,1727345567651,150.0,0.0001389,30]
[339212192,1727345567994,500.0,0.00021,60]
[339212193,1727345569816,590.62823325,0.00021,60]
[339212194,1727345569913,500.0,0.00021,60]
[339212195,1727345571931,325.8983179,0.00021,60]
[339212196,1727345571988,517.6742199,0.00021,60]
[339212197,1727345572783,542.45899453,0.00021,60]
[339212198,1727345572840,500.0,0.00021,60]
[339212199,1727345574362,630.74951394,0.00021,60]
[339212200,1727345575073,500.0,0.00021,60]
[339212201,1727345575844,500.0,0.00021,60]
[339212202,1727345576035,500.0,0.00021,60]
[339212203,1727345576476,192.98,0.00021,60]
[339212204,1727345576624,500.0,0.00021,60]
[339212205,1727345579205,525.85729096,0.00021,60]
[339212206,1727345579426,309.241435,0.00021,60]
[339212207,1727345581617,500.0,0.00021,60]
[339212208,1727345583448,500.0,0.00021,60]
[339212209,1727345583716,509.07,0.00021,60]
[339212210,1727345585700,500.0,0.00021,60]
[339212211,1727345585847,545.75834342,0.00021,60]
[339212212,1727345587591,500.0,0.00021,60]
[339212213,1727345588513,500.0,0.00021,60]
[339212214,1727345588760,500.0,0.00021,60]
[339212215,1727345589053,500.0,0.00021,60]
[339212216,1727345589383,643.3712502,0.00021,60]
[339212217,1727345591658,500.0,0.00021,60]
[339212218,1727345592036,500.0,0.00021,60]
[339212219,1727345592748,500.0,0.00021,60]
[339212220,1727345593025,500.0,0.00021,60]
[339212221,1727345593295,500.0,0.00021,60]
[339212222,1727345593869,548.3460247,0.00021,60]
[339212223,1727345593927,417.90529919,0.00021,60]
[339212224,1727345595567,502.38751737,0.00021,60]
[339212225,1727345596102,518.6354695,0.00021,60]
[339212226,1727345597810,405.83898302,0.00021,60]
[339212227,1727345599181,500.0,0.00021,60]
[339212228,1727345600215,500.0,0.00021,60]
[339212229,1727345601707,500.0,0.00021,60]
[339212230,1727345601846,500.0,0.00021,60]
[339212231,1727345602002,500.0,0.00021,60]
[339212232,1727345602115,639.22870534,0.00021,60]
[339212233,1727345604117,500.0,0.00021,60]
[339212234,1727345604606,500.0,0.00021,60]
[339212235,1727345604840,500.0,0.00021,60]
[339212236,1727345605093,184.37859064,0.00021,60]
[339212237,1727345606158,500.0,0.00021,60]
[339212238,1727345609239,500.0,0.00021,60]
[339212239,1727345610042,500.0,0.00021,60]
[339212240,1727345610175,500.0,0.00021,60]
[339212241,1727345610376,502.82001559,0.00021,60]
[339212242,1727345610439,500.0,0.00021,60]
[339212243,1727345610755,644.12643483,0.00021,60]
[339212244,1727345613932,353.39764593,0.00021,60]
[339212245,1727345614228,500.0,0.00021,60]
[339212246,1727345614487,500.0,0.00021,60]
[339212247,1727345614747,500.0,0.00021,60]
[339212248,1727345615042,500.0,0.00021,60]
[339212249,1727345615099,500.0,0.00021,60]
[339212250,1727345615306,500.0,0.00021,60]
[339212251,1727345615361,555.69543181,0.00021,60]
[339212252,1727345615587,344.47985744,0.00021,60]
[339212253,1727345617364,532.60527163,0.00021,60]
[339212254,1727345617863,500.0,0.00021,60]
[339212255,1727345617921,500.0,0.00021,60]
[339212256,1727345618064,500.0,0.00021,60]
[339212257,1727345618224,629.2073244,0.00021,60]
[339212258,1727345618369,504.55716766,0.00021,60]
[339212259,1727345619916,500.0,0.00021,60]
[339212260,1727345620181,500.0,0.00021,60]
[339212261,1727345620515,500.0,0.00021,60]
[339212262,1727345620654,500.0,0.00021,60]
[339212263,1727345620807,500.0,0.00021,60]
[339212264,1727345621092,518.35383743,0.00021,60]
[339212265,1727345621370,318.30639846,0.00021,60]
[339212266,1727345622049,500.0,0.00021,60]
[339212267,1727345622946,500.0,0.00021,60]
[339212268,1727345623231,500.0,0.00021,60]
[339212269,1727345623457,500.0,0.00021,60]
[339212270,1727345624107,500.0,0.00021,60]
[339212271,1727345626295,500.0,0.00021,60]
[339212272,1727345627403,500.0,0.00021,60]
[339212273,1727345628644,500.0,0.00021,60]
[339212274,1727345629006,500.0,0.00021,60]
[339212275,1727345629199,500.0,0.00021,60]
[339212276,1727345629291,500.0,0.00021,60]
[339212277,1727345629473,500.0,0.00021,60]
[339212278,1727345629731,500.0,0.00021,60]
[339212279,1727345629800,500.0,0.00021,60]
[339212280,1727345629856,527.04,0.00021,60]
[339212281,1727345630839,234.23681669,0.00021,60]
[339212282,1727345633701,518.90557588,0.00021,60]
[339212283,1727345634361,500.0,0.00021,60]
[339212284,1727345635053,500.0,0.00021,60]
[339212285,1727345637852,500.0,0.00021,60]
[339212286,1727345638110,491.08389902,0.00021,60]
[339212287,1727345639584,501.12483723,0.00021,60]
[339212288,1727345640506,607.8246792,0.00021,60]
[339212289,1727345641847,500.0,0.00021,60]
[339212290,1727345641978,500.0,0.00021,60]
[339212291,1727345642262,558.51004478,0.00021,60]
[339212292,1727345642926,500.0,0.00021,60]
[339212293,1727345644945,526.15291052,0.00021,60]
[339212294,1727345646158,554.29123744,0.00021,60]
[339212295,1727345647205,518.09,0.00021,60]
[339212296,1727345649127,500.0,0.00021,60]
[339212297,1727345649405,568.15045289,0.00021,60]
[339212298,1727345650148,500.0,0.00021,60]
[339212299,1727345650435,595.91414976,0.00021,60]
[339212300,1727345653683,500.0,0.00021,60]
[339212301,1727345654094,500.0,0.00021,60]
[339212302,1727345654417,500.0,0.00021,60]
[339212303,1727345654698,500.0,0.00021,60]
[339212304,1727345655000,500.0,0.00021,60]
[339212305,1727345655275,500.0,0.00021,60]
[339212306,1727345655518,291.6,0.00021,60]
[339212307,1727345663602,500.0,0.00021,60]
[339212308,1727345663670,294.68618892,0.00021,60]
[339212309,1727345665956,500.0,0.00021,60]
[339212310,1727345666291,500.0,0.00021,60]
[339212311,1727345666528,500.0,0.00021,60]
[339212312,1727345666801,500.0,0.00021,60]
[339212313,1727345667071,500.0,0.00021,60]
[339212314,1727345667718,500.0,0.00021,60]
[339212315,1727345667982,500.0,0.00021,60]
[339212316,1727345668305,500.0,0.00021,60]
[339212317,1727345668572,500.0,0.00021,60]
[339212318,1727345668624,500.0,0.00021,60]
[339212319,1727345668852,500.0,0.00021,60]
[339212320,1727345668911,500.0,0.00021,60]
[339212321,1727345669110,500.0,0.00021,60]
[339212322,1727345669224,170.62,0.00021,60]
[339212323,1727345669537,500.0,0.00021,60]
[339212324,1727345669785,500.0,0.00021,60]
[339212325,1727345670085,500.0,0.00021,60]
[339212326,1727345670356,500.0,0.00021,60]
[339212327,1727345670637,500.0,0.00021,60]
[339212328,1727345670952,500.0,0.00021,60]
[339212329,1727345671010,500.0,0.00021,60]
[339212330,1727345671082,486.82062236,0.00021,60]
[339212331,1727345671230,500.0,0.00021,60]
[339212332,1727345671493,500.0,0.00021,60]
[339212333,1727345671544,500.0,0.00021,60]
[339212334,1727345671803,500.0,0.00021,60]
[339212335,1727345672123,500.0,0.00021,60]
[339212336,1727345672784,160.68,0.00021,60]
[339212337,1727345676038,612.53008367,0.00021,60]
[339212338,1727345678668,500.0,0.00021,60]
[339212339,1727345680135,500.0,0.00021,60]
[339212340,1727345680432,501.72901029,0.00021,60]
[339212341,1727345682266,500.0,0.00021,60]
[339212342,1727345682523,500.0,0.00021,60]
[339212343,1727345682997,500.0,0.00021,60]
[339212344,1727345683258,500.0,0.00021,60]
[339212345,1727345683534,500.0,0.00021,60]
[339212346,1727345683839,500.0,0.00021,60]
[339212347,1727345684082,500.0,0.00021,60]
[339212348,1727345684360,500.0,0.00021,60]
[339212349,1727345684615,500.0,0.00021,60]
[339212350,1727345684672,534.0572803,0.00021,60]
[339212351,1727345684918,500.0,0.00021,60]
[339212352,1727345685201,500.0,0.00021,60]
[339212353,1727345685466,500.0,0.00021,60]
[339212354,1727345685720,500.0,0.00021,60]
[339212355,1727345686029,500.0,0.00021,60]
[339212356,1727345686534,393.50731684,0.00021,60]
[339212357,1727345688047,500.0,0.00021,60]
[339212358,1727345688365,500.0,0.00021,60]
[339212359,1727345688554,500.0,0.00021,60]
[339212360,1727345688629,500.0,0.00021,60]
[339212361,1727345688896,501.3467693,0.00021,60]
[339212362,1727345688952,500.0,0.00021,60]
[339212363,1727345689198,500.0,0.00021,60]
[339212364,1727345689257,615.86,0.00021,60]
[339212365,1727345689494,500.0,0.00021,60]
[339212366,1727345689745,500.0,0.00021,60]
[339212367,1727345690299,500.0,0.00021,60]
[339212368,1727345690590,500.0,0.00021,60]
[339212369,1727345690880,500.0,0.00021,60]
[339212370,1727345691136,500.0,0.00021,60]
[339212371,1727345691600,500.0,0.00021,60]
[339212372,1727345691727,500.0,0.00021,60]
[339212373,1727345692038,500.0,0.00021,60]
[339212374,1727345692329,500.0,0.00021,60]
[339212375,1727345692609,244.36,0.00021,60]
[339212376,1727345698392,500.0,0.00021,60]
[339212377,1727345698675,500.0,0.00021,60]
[339212378,1727345698923,500.0,0.00021,60]
[339212379,1727345699195,194.63261438,0.00021,60]
[339212380,1727345705271,500.0,0.00021,60]
[339212381,1727345705563,617.31603303,0.00021,60]
[339212382,1727345710528,500.0,0.00021,60]
[339212383,1727345710789,500.0,0.00021,60]
[339212384,1727345711103,522.33850049,0.00021,60]
[339212385,1727345713518,500.0,0.00021,60]
[339212386,1727345713744,500.0,0.00021,60]
[339212387,1727345713814,500.0,0.00021,60]
[339212388,1727345714036,503.27740672,0.00021,60]
[339212389,1727345714093,500.0,0.00021,60]
[339212390,1727345714518,500.0,0.00021,60]
[339212391,1727345714642,500.0,0.00021,60]
[339212392,1727345714920,500.0,0.00021,60]
[339212393,1727345715215,500.0,0.00021,60]
[339212394,1727345715503,563.55395148,0.00021,60]
[339212395,1727345715642,500.0,0.00021,60]
[339212396,1727345715891,500.0,0.00021,60]
[339212397,1727345716189,500.0,0.00021,60]